[Event "17th Paracin Open 2024"]
[Site "Paracin"]
[Date "2024.07.05"]
[Round "3.7"]
[White "Xu, Junwei"]
[Black "Atalik, Suat"]
[Result "1-0"]
[ECO "A15"]
[WhiteElo "2138"]
[BlackElo "2450"]
[Annotator "TA"]
[PlyCount "77"]
[EventDate "2024.07.02"]
[EventType "swiss"]
[EventCountry "SRB"]
[SourceTitle "playchess.com"]
[Source "ChessBase"]
[SourceQuality "1"]
[TimeControl "5400+30"]

{[%evp 13,77,0,0,6,0,8,17,18,4,0,7,4,8,20,26,3,14,16,15,18,30,41,39,106,29,42,52,29,30,29,46,13,48,43,86,81,82,56,65,70,58,50,73,42,30,52,43,47,256,248,425,389,342,341,335,329,594,573,741,722,927,920,1602,1625,1839,1739]} 1. Nf3 {[%emt 0:00:04]} Nf6 {[%emt 0:00:11]} 2. b3 {[%emt 0:00:06]} g6 {[%emt 0:00:42]} 3. Bb2 {[%emt 0:00:04]} Bg7 {[%emt 0:00:06]} 4. g3 {[%emt 0:00:25]} b6 {[%emt 0:03:34]} 5. c4 {[%emt 0:00:13]} O-O {[%emt 0:01:49]} 6. Bg2 {[%emt 0:00:07]} Bb7 {[%emt 0:00:05]} 7. O-O {[%emt 0:02:38]} e6 {[%emt 0:02:50]} 8. Nc3 {[%emt 0:01:24]} d5 {[%emt 0:05:28]} 9. cxd5 {[%emt 0:00:37]} Nxd5 {[%emt 0:00:46]} 10. Rc1 {[%emt 0:00:44] The position is equal.} c5 {[%emt 0:04:16]} 11. d4 {[%emt 0:01:32]} Na6 {[%emt 0:04:17]} 12. Qd2 {[%emt 0:11:04]} Nxc3 {[%emt 0:02:42]} 13. Bxc3 {[%emt 0:00:09]} cxd4 {[%emt 0:07:48]} 14. Nxd4 {[%emt 0:00:06][%cal Bf3d4,Bd4f5,Bf5e7][%mdl 32]} Bxg2 {[%emt 0:00:10]} 15. Kxg2 {[%emt 0:00:03]} Qd5+ {[%emt 0:01:17]} 16. f3 {[%emt 0:03:08]} (16. Nf3 {simplifies} Qxd2 17. Bxd2 Rfc8 18. Rfd1) 16... e5 {[%emt 0:19:04] [#]} 17. Nf5 {[%emt 0:05:15]} Qxd2 {[%emt 0:00:10]} 18. Ne7+ {[%emt 0:00:01]} Kh8 {[%emt 0:00:07]} 19. Bxd2 {[%emt 0:00:02]} f5 {[%emt 0:09:34]} 20. Rc4 {[%emt 0:04:06]} Rad8 {[%emt 0:03:32]} 21. Bg5 {[%emt 0:09:56]} Bf6 {[%emt 0:00:21]} 22. Bxf6+ {[%emt 0:00:03]} Rxf6 {[%emt 0:00:04]} 23. Rfc1 {[%emt 0:00:17]} e4 {[%emt 0:07:36]} 24. fxe4 {[%emt 0:28:57] White is more active.} fxe4 {[%emt 0:00:47]} 25. Rxe4 {[%emt 0:04:16]} Nc5 {[%emt 0:01:18]} 26. Re3 {[%emt 0:00:20]} Rd2 {[%emt 0:02:01][%cal Of6e6]} 27. a4 {[%emt 0:09:24]} Kg7 {[%emt 0:13:48][%cal Oc5b3]} 28. b4 {[%emt 0:05:33]} Nd3 {[%emt 0:01:30]} 29. Rc7 {[%emt 0:01:58] Intending Nf5+ and mate.} Rf7 {[%emt 0:00:52]} 30. b5 $36 {[%emt 0:01:29][%cal Oc7a7][%mdl 2048] White has good play.} Nf2 $2 {[%emt 0:03:15] [#] Black cannot hold the game after this.} (30... h5 $14) 31. Rf3 $1 $18 {[%emt 0:03:14]} (31. Rxa7 Nd1 32. Re6 Nc3 $11) 31... Rxe2 {[%emt 0:01:13]} (31... Nd3 {might work better.} 32. Rxf7+ (32. Rxd3 Rxe2+ 33. Kh3 Rexe7 $11) 32... Kxf7 33. Nc6+ (33. Rxa7 $2 Rxe2+ 34. Kf3 Rxe7 $19) 33... Ke6) 32. Rxf7+ {[%emt 0:00:17]} (32. Rxa7 $2 Ng4+ (32... Rfxe7 33. Rxe7+ Rxe7 34. Kxf2 $16) (32... Nd1+ $2 33. Kh3 $19) 33. Kf1 Rfxe7 $19 (33... Rxf3+ $2 34. Kxe2 Re3+ 35. Kd2 $18)) 32... Kxf7 {[%emt 0:00:03][%mdl 4096] Endgame. KRN-KRN} 33. Nd5+ {[%emt 0:00:15]} (33. Rxa7 $2 {is the wrong capture.} Nd3+ (33... Rxe7 34. Ra6 $15) 34. Kf1 Rxe7 $19) 33... Kf8 {[%emt 0:00:11]} 34. Rxa7 {[%emt 0:00:33]} Ra2 $2 {[%emt 0:03:01]} (34... Nd3+ 35. Kf3 Re6) 35. Nxb6 {[%emt 0:00:18] White is clearly winning.} (35. Rxh7 Ne4+ 36. Kf1 Rxa4 $16) 35... Ng4+ {[%emt 0:00:07]} 36. Kf3 {[%emt 0:00:03]} Nxh2+ {[%emt 0:00:04]} 37. Ke4 {[%emt 0:00:18]} h5 {[%emt 0:00:06]} 38. Nd7+ {[%emt 0:00:10]} Ke7 {[%emt 0:00:17]} 39. b6 {[%emt 0:00:03] Weighted Error Value: White=0.03 (flawless) /Black=0.42.  Loses game:     	---       	Black=1      Mistake:       	---       	Black=2      Inaccurate:     	White=2     	Black=2      OK:         	White=15    	Black=10     Best:        	White=3     	---        Strong:       	White=1     	---} 1-0

[Event "17th Paracin Open 2024"]
[Site "Paracin"]
[Date "2024.07.05"]
[Round "3.8"]
[White "Vasilkov, Nikolay"]
[Black "Ben Ari, Yannay"]
[Result "0-1"]
[ECO "B30"]
[WhiteElo "2071"]
[BlackElo "2443"]
[Annotator "TA"]
[PlyCount "88"]
[EventDate "2024.07.02"]
[EventType "swiss"]
[EventCountry "SRB"]
[SourceTitle "playchess.com"]
[Source "ChessBase"]
[SourceQuality "1"]
[TimeControl "5400+30"]

{[%evp 9,88,17,24,21,23,0,0,-95,-79,-67,-47,-48,-14,-43,-39,-40,-38,-59,-58,-50,-44,-56,-53,-89,-79,-105,-98,-120,-89,-83,-52,-264,-248,-515,-494,-484,-532,-525,-513,-538,-557,-539,-543,-549,-556,-560,-593,-550,-389,-379,-328,-326,-321,-326,-341,-389,-383,-416,-415,-425,-425,-438,-424,-458,-429,-504,-471,-531,-503,-528,-503,-539,-550,-552,-552,-548,-548,-666,-661,-1026,-1038]} 1. e4 {[%emt 0:00:03]} c5 {[%emt 0:07:44]} 2. Nf3 {[%emt 0:00:05]} Nc6 {[%emt 0:00:05]} 3. Nc3 {[%emt 0:00:05]} e5 {[%emt 0:01:28]} 4. Bc4 {[%emt 0:00:06]} Be7 {[%emt 0:00:34]} 5. d3 {[%emt 0:00:05]} d6 {[%emt 0:00:44]} 6. a3 {[%emt 0:00:57]} Nf6 {[%emt 0:02:45]} 7. Ng5 {[%emt 0:02:22]} O-O {[%emt 0:00:22]} 8. h4 {[%emt 0:00:02]} (8. O-O $11) 8... h6 {[%emt 0:23:10]} 9. Be3 {[%emt 0:16:18]} Ng4 {[%emt 0:04:22]} 10. Nf3 {[%emt 0:03:23]} Nd4 {[%emt 0:07:52]} 11. Bxd4 {[%emt 0:08:53]} cxd4 {[%emt 0:05:59]} 12. Nd5 {[%emt 0:00:13]} Be6 {[%emt 0:03:57]} 13. Qb1 {[%emt 0:00:54] [#]} b5 $1 {[%emt 0:02:09]} 14. Bb3 {[%emt 0:01:17]} a5 {[%emt 0:11:17]} 15. a4 {[%emt 0:01:17]} b4 {[%emt 0:05:40]} 16. Qa2 {[%emt 0:06:00]} Rc8 {[%emt 0:00:08]} 17. Rc1 {[%emt 0:00:23]} Rc5 {[%emt 0:01:57]} 18. Bc4 {[%emt 0:01:17]} Kh8 {[%emt 0:01:15]} 19. Qb3 {[%emt 0:01:59]} Qe8 $36 {[%emt 0:08:28][%mdl 2048] Black has good play.} 20. h5 $2 {[%emt 0:01:59] Loses the game.} ({Better is} 20. c3 $15) 20... f5 $19 {[%emt 0:04:24] White must now prevent ...fxe4.} 21. Nb6 $2 {[%emt 0:15:14] [#]} (21. c3 fxe4 22. dxe4) 21... Rxc4 $1 {[%emt 0:02:43][%mdl 512]} 22. exf5 {[%emt 0:07:40]} Rc6 {[%emt 0:00:01]} (22... Rxf5 23. dxc4 Bf6 (23... Rxh5 $2 24. Rxh5 Qxh5 25. Qd3 $19) 24. Rd1 $19) 23. Qxe6 {[%emt 0:31:28]} Rxb6 {[%emt 0:00:01]} 24. f6 {[%emt 0:00:00]} Nxf6 {[%emt 0:00:11][%cal Ob6b7]} 25. Nh4 {[%emt 0:00:00]} Rf7 {[%emt 0:00:06]} ({Worse is} 25... Nxh5 26. Ng6+ Kh7 27. Nxf8+ (27. Nxe7 $2 Nf4 $19) 27... Qxf8 28. Rxh5 $11) 26. Ng6+ {[%emt 0:00:00]} Kg8 {[%emt 0:01:50]} 27. Nxe5 {[%emt 0:00:00]} dxe5 {[%emt 0:00:16]} 28. Qxb6 {[%emt 0:00:00]} Bd8 {[%emt 0:00:18]} 29. Qb5 {[%emt 0:00:00]} Qxb5 {[%emt 0:00:10]} 30. axb5 {[%emt 0:00:00]} Nd5 {[%emt 0:00:32]} ({Don't take} 30... Rb7 31. b6 $19) 31. g3 {[%emt 0:00:00]} Rb7 {[%emt 0:00:39]} 32. O-O {[%emt 0:00:00]} Rxb5 {[%emt 0:00:19]} 33. Ra1 {[%emt 0:00:00]} Rc5 {[%emt 0:00:09]} 34. Rfe1 {[%emt 0:00:00]} Nf6 {[%emt 0:00:30] Black is clearly winning.} ({Resist} 34... Rxc2 35. Rxe5 Ne7 36. Rb1 $19) 35. Re2 {[%emt 0:00:00]} Nxh5 {[%emt 0:01:07]} 36. Kg2 {[%emt 0:00:00]} Nf6 {[%emt 0:00:25]} 37. b3 {[%emt 0:00:00]} Bc7 {[%emt 0:00:28]} 38. Kf3 {[%emt 0:00:00]} Kf7 {[%emt 0:00:07]} 39. Rd2 {[%emt 0:00:00]} Ke6 {[%emt 0:00:28]} 40. Re2 {[%emt 0:00:00]} Kf5 {[%emt 0:00:35]} 41. Rh1 {[%emt 0:00:00]} h5 {[%emt 0:00:08]} 42. Kg2 {[%emt 0:00:00]} g5 {[%emt 0:00:25]} 43. f3 {[%emt 0:00:00]} Kg6 {[%emt 0:00:07]} 44. f4 {[%emt 0:00:00]} exf4 {[%emt 0:00:08] Weighted Error Value: White=0.34/Black=0.16 (very precise) .  Loses game:     	White=1     	---        Mistake:       	White=2     	---        Inaccurate:     	White=4     	Black=2      OK:         	White=11    	Black=21     Best:        	White=1     	Black=1} 0-1

[Event "17th Paracin Open 2024"]
[Site "Paracin"]
[Date "2024.07.05"]
[Round "3.9"]
[White "Wang, Yanbin"]
[Black "Averin, Nikolay"]
[Result "1-0"]
[ECO "A13"]
[WhiteElo "2423"]
[BlackElo "2250"]
[Annotator "TA"]
[PlyCount "67"]
[EventDate "2024.07.02"]
[EventType "swiss"]
[EventCountry "SRB"]
[SourceTitle "playchess.com"]
[Source "ChessBase"]
[SourceQuality "1"]
[TimeControl "5400+30"]

{[%evp 15,67,0,14,7,14,-1,36,25,25,29,22,24,27,21,66,57,101,81,84,77,70,82,138,150,225,123,115,119,112,132,113,100,399,402,392,382,413,420,415,422,441,418,505,502,489,542,545,565,711,714,719,713,1490,895]} 1. c4 {[%emt 0:00:02]} e6 {[%emt 0:04:15]} 2. Nf3 {[%emt 0:00:10]} d5 {[%emt 0:00:30]} 3. g3 {[%emt 0:00:07]} dxc4 {[%emt 0:01:00]} 4. Qa4+ {[%emt 0:00:26]} Nd7 {[%emt 0:00:06]} 5. Qxc4 {[%emt 0:00:17]} a6 {[%emt 0:00:04]} 6. Qc2 {[%emt 0:00:29]} b5 {[%emt 0:11:38]} 7. Bg2 {[%emt 0:00:30]} Bb7 {[%emt 0:00:01]} 8. O-O {[%emt 0:02:00]} Ngf6 {[%emt 0:00:48][%cal Bg8f6,Bf6d5,Bd5b6][%mdl 32]} 9. Nc3 {[%emt 0:00:41][%cal Bb1c3,Bc3d1,Bd1e3,Be3c4,Bc4a5][%mdl 32]} c5 {[%emt 0:01:00]} 10. a4 {[%emt 0:00:16]} b4 {[%emt 0:11:11]} 11. Nd1 {[%emt 0:00:06] White is slightly better.} Rc8 {[%emt 0:01:04]} 12. Ne3 {[%emt 0:00:33]} Nd5 {[%emt 0:16:57]} 13. Nc4 {[%emt 0:01:33]} N5b6 {[%emt 0:00:32]} 14. Na5 {[%emt 0:01:00]} Bxf3 {[%emt 0:22:43]} 15. Bxf3 {[%emt 0:00:24]} c4 {[%emt 0:00:07][%cal Bc5c4,Bc4d3][%mdl 32] [#]} 16. d3 $1 {[%emt 0:09:22] White is more active.} Ne5 {[%emt 0:06:24][%cal Rc4d3] Dodges Nc6} 17. Bb7 {[%emt 0:02:27]} cxd3 {[%emt 0:01:19]} 18. Qd1 {[%emt 0:00:02]} Rb8 {[%emt 0:15:18]} ({Not} 18... Rc5 $2 19. Nb3 $18) (18... Rc7 $142) 19. Bxa6 $16 {[%emt 0:08:38]} Qd5 {[%emt 0:00:36] [#]} (19... Nbd7 $16 {was necessary.}) 20. Bb5+ {[%emt 0:00:05]} (20. Bf4 $1 $18 {[%cal Rf4e5]} Nbd7 21. Nb3) 20... Nbd7 {[%emt 0:00:29] Threatens to win with ...dxe2.} 21. f3 {[%emt 0:01:27]} ({Much weaker is} 21. exd3 $6 Nf3+ 22. Kh1 Nd4+ 23. Kg1 Nxb5 24. axb5 Rxb5 $11) 21... Bc5+ {[%emt 0:04:08][%cal Bf8c5,Bc5d4,Bd4b6][%mdl 32]} 22. Kg2 {[%emt 0:00:18]} O-O {[%emt 0:00:48]} 23. exd3 {[%emt 0:06:10][%cal Od3d4] Hoping for d4!} f5 $2 {[%emt 0:00:31][%mdl 8192] [#] This move loses the game for Black.} (23... Nf6 $16) 24. d4 $1 $18 {[%emt 0:00:46][%mdl 512]} Bxd4 {[%emt 0:00:29]} 25. Nb3 {[%emt 0:00:13] Prevents Nc5.} Rxb5 {[%emt 0:00:30]} 26. axb5 {[%emt 0:00:09]} Bb6 {[%emt 0:00:29]} 27. Qxd5 {[%emt 0:00:07]} exd5 {[%emt 0:00:02]} 28. Rd1 {[%emt 0:01:11] Against Nd3} Nf6 {[%emt 0:00:28]} 29. Nd4 {[%emt 0:01:11] White is clearly winning.} Rc8 {[%emt 0:00:58]} 30. Bf4 {[%emt 0:00:30]} Bxd4 {[%emt 0:00:34]} 31. Rxd4 {[%emt 0:00:03]} Rc2+ {[%emt 0:00:14]} 32. Rd2 {[%emt 0:00:02]} Rxd2+ {[%emt 0:00:13]} 33. Bxd2 {[%emt 0:00:02]} b3 {[%emt 0:00:24]} 34. b6 {[%emt 0:00:08] Weighted Error Value: White=0.09 (flawless) /Black=0.36.  Loses game:     	---       	Black=1      Mistake:       	White=1     	Black=2      Inaccurate:     	---       	Black=3      OK:         	White=13    	Black=10     Best:        	White=2     	---        Strong:       	White=1     	---} 1-0

[Event "17th Paracin Open 2024"]
[Site "Paracin"]
[Date "2024.07.05"]
[Round "3.10"]
[White "Safarli, Eltaj"]
[Black "Zhong, Kangmin"]
[Result "1-0"]
[ECO "B51"]
[WhiteElo "2595"]
[BlackElo "2010"]
[Annotator "TA"]
[PlyCount "85"]
[EventDate "2024.07.02"]
[EventType "swiss"]
[EventCountry "SRB"]
[SourceTitle "playchess.com"]
[Source "ChessBase"]
[SourceQuality "1"]
[TimeControl "5400+30"]

{[%evp 16,85,28,29,27,21,14,22,21,8,11,22,13,13,18,15,24,13,27,35,16,12,14,11,58,8,0,0,0,0,45,41,52,41,62,63,65,67,66,63,66,60,74,87,103,102,97,87,71,79,108,109,108,86,110,105,178,185,304,297,302,302,295,289,1148,1080,1080,963,1452,1327,29985,5835]} 1. e4 {[%emt 0:01:08]} c5 {[%emt 0:00:13]} 2. Nf3 {[%emt 0:00:06]} Nc6 {[%emt 0:00:15]} 3. Bb5 {[%emt 0:00:06]} d6 {[%emt 0:01:12]} 4. O-O {[%emt 0:00:14]} Bd7 {[%emt 0:00:10]} 5. Re1 {[%emt 0:00:05]} Nf6 {[%emt 0:00:11]} 6. c3 {[%emt 0:00:06]} a6 {[%emt 0:00:28]} 7. Bf1 {[%emt 0:00:07]} Bg4 {[%emt 0:00:32]} 8. h3 {[%emt 0:00:06]} Bxf3 {[%emt 0:00:10]} 9. Qxf3 {[%emt 0:00:04]} e6 {[%emt 0:00:10]} 10. d3 {[%emt 0:00:15]} Be7 {[%emt 0:00:24]} 11. Nd2 {[%emt 0:00:09]} O-O {[%emt 0:00:30] The position is equal.} 12. Qd1 {[%emt 0:00:04]} b5 {[%emt 0:00:17]} 13. Nf3 {[%emt 0:00:19]} Qd7 {[%emt 0:00:25]} 14. g3 {[%emt 0:02:57]} Rfc8 {[%emt 0:04:53]} 15. a3 {[%emt 0:02:01]} Rab8 {[%emt 0:02:55]} 16. Bf4 {[%emt 0:03:29]} h6 {[%emt 0:03:56]} 17. d4 {[%emt 0:01:14]} cxd4 {[%emt 0:01:05]} 18. cxd4 {[%emt 0:00:23]} Bd8 {[%emt 0:00:30]} 19. h4 {[%emt 0:06:17]} Nh5 {[%emt 0:11:43]} (19... Bb6 $11) 20. Be3 {[%emt 0:07:33]} (20. Bc1 $14) 20... Nf6 $11 {[%emt 0:00:16]} 21. Bh3 {[%emt 0:03:21] Threatens to win with d5.} d5 $1 {[%emt 0:08:15]} (21... Nxe4 $2 {loses.} 22. d5 $18) 22. e5 {[%emt 0:00:26]} Nh7 {[%emt 0:12:07]} 23. Bf1 {[%emt 0:02:43]} a5 {[%emt 0:12:37]} 24. b3 $36 {[%emt 0:03:39][%mdl 2048] White has some pressure.} Ne7 {[%emt 0:00:56]} 25. Bd3 {[%emt 0:01:11]} Nf8 {[%emt 0:02:08]} 26. h5 {[%emt 0:04:59]} Nf5 {[%emt 0:05:33]} 27. Bf4 {[%emt 0:02:34]} Ne7 {[%emt 0:01:26]} 28. Rb1 {[%emt 0:08:03] White is more active.} Rc3 {[%emt 0:03:01]} 29. Qe2 {[%emt 0:01:08]} b4 {[%emt 0:04:17]} 30. axb4 {[%emt 0:01:32]} axb4 {[%emt 0:00:01]} 31. Bd2 {[%emt 0:00:14]} Rc7 {[%emt 0:00:29][%cal Bc3c7,Bc7a7,Ba7a2,Ba2b2][%mdl 32]} 32. g4 {[%emt 0:02:32]} Ra7 {[%emt 0:02:28]} 33. Kh1 {[%emt 0:02:19]} Ra2 {[%emt 0:02:23]} 34. Rg1 {[%emt 0:00:56]} Qe8 {[%emt 0:02:04]} 35. Rg3 {[%emt 0:03:01]} Nh7 {[%emt 0:02:39] [#]} (35... Nc6 $16 {was called for.}) 36. Rbg1 $1 $18 {[%emt 0:03:10] aiming for g5.} Ng5 {[%emt 0:00:30]} (36... g5 {was necessary.} 37. hxg6 Nxg6) 37. Nxg5 {[%emt 0:00:18]} hxg5 {[%emt 0:00:02]} 38. Bb1 {[%emt 0:00:31]} Rb2 {[%emt 0:03:12]} 39. Qd3 {[%emt 0:00:25] And now Qh7+ would win.} Qb5 $2 {[%emt 0:00:35]} (39... Rxb1 40. Rxb1 Nc6) 40. Qh7+ {[%emt 0:03:18]} ({Not} 40. Bxg5 Qxd3 41. Bxd3 Nc6 42. Bxd8 Rxd8 $15) 40... Kf8 {[%emt 0:00:01]} 41. Bxg5 {[%emt 0:01:14] Rf3 would now be deadly.} Ng8 {[%emt 0:00:08] [#]} 42. h6 $1 {[%emt 0:01:04]} gxh6 {[%emt 0:02:13] [#]} (42... Bxg5 43. Qxg7+) 43. Rf3 $1 {[%emt 0:00:37] Weighted Error Value: White=0.05 (flawless) /Black=0.39.  Mistake:       	White=1     	Black=4      Inaccurate:     	---       	Black=2      OK:         	White=17    	Black=8      Best:        	White=1     	Black=1      Strong:       	---       	Black=1} 1-0

[Event "17th Paracin Open 2024"]
[Site "Paracin"]
[Date "2024.07.05"]
[Round "3.11"]
[White "Sasikiran, Krishnan"]
[Black "Ristic, Luka"]
[Result "1/2-1/2"]
[ECO "E05"]
[WhiteElo "2581"]
[BlackElo "2318"]
[Annotator "RC"]
[PlyCount "165"]
[EventDate "2024.07.02"]
[EventType "swiss"]
[EventCountry "SRB"]
[SourceTitle "playchess.com"]
[Source "ChessBase"]
[SourceQuality "1"]
[TimeControl "5400+30"]

1. d4 {[%emt 0:00:12]} d5 {[%emt 0:00:29]} 2. c4 {[%emt 0:00:12]} e6 {[%emt 0:00:34]} 3. Nf3 {[%emt 0:00:28]} Nf6 {[%emt 0:00:33]} 4. g3 {[%emt 0:00:39]} Be7 {[%emt 0:01:33]} 5. Bg2 {[%emt 0:00:21]} O-O {[%emt 0:00:13]} 6. O-O {[%emt 0:01:58]} dxc4 {[%emt 0:00:49]} 7. Qc2 {[%emt 0:00:45]} b5 {[%emt 0:01:32]} 8. a4 {[%emt 0:00:59]} b4 {[%emt 0:01:17]} 9. Bg5 {[%emt 0:06:42]} Ba6 {[%emt 0:13:47]} 10. Nbd2 {[%emt 0:05:50]} Nd5 {[%emt 0:08:17]} 11. Bxe7 {[%emt 0:06:29]} Qxe7 {[%emt 0:00:19]} 12. Nxc4 {[%emt 0:02:08]} c5 {[%emt 0:05:58]} 13. Rfc1 {[%emt 0:16:03]} Nd7 {[%emt 0:06:40]} 14. e4 {[%emt 0:10:51]} N5b6 {[%emt 0:05:32]} 15. Ncd2 {[%emt 0:03:34]} cxd4 {[%emt 0:23:31]} 16. a5 {[%emt 0:03:04]} d3 {[%emt 0:01:02]} 17. Qc7 {[%emt 0:14:18]} Rfc8 {[%emt 0:03:19]} 18. axb6 {[%emt 0:01:51]} Rxc7 {[%emt 0:00:19]} 19. Rxc7 {[%emt 0:00:12]} axb6 {[%emt 0:06:16]} 20. Ne5 {[%emt 0:01:14]} Qd6 {[%emt 0:03:44]} 21. Rxd7 {[%emt 0:01:58]} Qxe5 {[%emt 0:00:14]} 22. Rxa6 {[%emt 0:02:30]} Rc8 {[%emt 0:01:06]} 23. Bf1 {[%emt 0:07:12]} Qxb2 {[%emt 0:00:34]} 24. Rxd3 {[%emt 0:01:23]} h6 {[%emt 0:01:26]} 25. Rxb6 {[%emt 0:00:57]} Rc2 {[%emt 0:00:25]} 26. Rbd6 {[%emt 0:04:28]} Qe5 {[%emt 0:01:56]} 27. Rd8+ {[%emt 0:01:20]} Kh7 {[%emt 0:00:04]} 28. R8d7 {[%emt 0:00:04]} Kg8 {[%emt 0:01:35]} 29. Rb7 {[%emt 0:01:43]} Qb2 {[%emt 0:00:44]} 30. Rbd7 {[%emt 0:02:50]} Qe5 {[%emt 0:00:15]} 31. h4 {[%emt 0:00:32]} Rc3 {[%emt 0:01:24]} 32. Kg2 {[%emt 0:00:18]} Qc5 {[%emt 0:01:27]} 33. R7d4 {[%emt 0:01:49]} Kh7 {[%emt 0:01:45]} 34. Rd7 {[%emt 0:00:37]} Kg8 {[%emt 0:00:39]} 35. Be2 {[%emt 0:00:22]} Rxd3 {[%emt 0:02:29]} 36. Rxd3 {[%emt 0:00:16]} Kf8 {[%emt 0:00:38]} 37. Nb3 {[%emt 0:01:37]} Qc2 {[%emt 0:00:54]} 38. Re3 {[%emt 0:00:41]} Ke7 {[%emt 0:00:50]} 39. e5 {[%emt 0:00:34]} g5 {[%emt 0:00:41]} 40. hxg5 {[%emt 0:00:33]} hxg5 {[%emt 0:00:01]} 41. Bf3 {[%emt 0:00:28]} Kf8 {[%emt 0:00:26]} 42. Bh5 {[%emt 0:00:40]} Qc6+ {[%emt 0:02:39]} 43. Rf3 {[%emt 0:00:34]} Qd5 {[%emt 0:00:54]} 44. Kh2 {[%emt 0:00:39]} Qxe5 {[%emt 0:00:38]} 45. Rxf7+ {[%emt 0:00:20]} Kg8 {[%emt 0:00:02]} 46. Rf3 {[%emt 0:00:35]} Qe4 {[%emt 0:01:01]} 47. Kh3 {[%emt 0:00:36]} Qd5 {[%emt 0:01:42]} 48. Re3 {[%emt 0:00:30]} Qf5+ {[%emt 0:01:10]} 49. Kg2 {[%emt 0:00:29]} g4 {[%emt 0:00:03]} 50. Be8 {[%emt 0:00:13]} Qd5+ {[%emt 0:00:05]} 51. Kh2 {[%emt 0:00:32]} Kg7 {[%emt 0:00:08]} 52. Ba4 {[%emt 0:00:44]} Kf6 {[%emt 0:00:31]} 53. Nc1 {[%emt 0:00:33]} Qh5+ {[%emt 0:01:38]} 54. Kg1 {[%emt 0:00:28]} Qc5 {[%emt 0:00:47]} 55. Ne2 {[%emt 0:00:31]} e5 {[%emt 0:00:06]} 56. Bb3 {[%emt 0:00:30]} Qc6 {[%emt 0:00:17]} 57. Kh2 {[%emt 0:00:29]} Qb7 {[%emt 0:00:15]} 58. Kg1 {[%emt 0:00:32]} Qc6 {[%emt 0:00:28]} 59. Kf1 {[%emt 0:00:21]} Qh1+ {[%emt 0:00:17]} 60. Ng1 {[%emt 0:00:06]} Qc6 {[%emt 0:00:04]} 61. Bd1 {[%emt 0:00:43]} Qc1 {[%emt 0:00:26]} 62. Ke1 {[%emt 0:00:17]} Qc4 {[%emt 0:00:52]} 63. Ne2 {[%emt 0:00:38]} Qc6 {[%emt 0:00:03]} 64. Bb3 {[%emt 0:00:37]} Qh1+ {[%emt 0:00:15]} 65. Kd2 {[%emt 0:00:11]} Qf1 {[%emt 0:00:17]} 66. Re4 {[%emt 0:00:39]} Kf5 {[%emt 0:01:44]} 67. Rxb4 {[%emt 0:00:55]} Qxf2 {[%emt 0:00:12]} 68. Bc2+ {[%emt 0:00:29]} Kg5 {[%emt 0:00:10]} 69. Re4 {[%emt 0:00:18]} Qc5 {[%emt 0:00:10]} 70. Bd3 {[%emt 0:00:21]} Kh5 {[%emt 0:01:21]} 71. Re3 {[%emt 0:00:41]} Qb4+ {[%emt 0:00:26]} 72. Nc3 {[%emt 0:00:23]} Qd4 {[%emt 0:00:17]} 73. Re2 {[%emt 0:00:31]} Kh6 {[%emt 0:01:31]} 74. Re4 {[%emt 0:00:40]} Qf2+ {[%emt 0:00:25]} 75. Ne2 {[%emt 0:00:07]} Qf5 {[%emt 0:00:06]} 76. Rc4 {[%emt 0:00:38]} Qg5+ {[%emt 0:00:56]} 77. Kc2 {[%emt 0:00:11]} Kh5 {[%emt 0:00:33]} 78. Nc3 {[%emt 0:01:08]} Qe3 {[%emt 0:00:38]} 79. Ne4 {[%emt 0:00:32]} Qf3 {[%emt 0:00:16]} 80. Rc5 {[%emt 0:00:33]} Qf5 {[%emt 0:00:59]} 81. Rc6 {[%emt 0:00:18]} Qf3 {[%emt 0:00:17]} 82. Rf6 {[%emt 0:00:37]} Qxd3+ {[%emt 0:00:06]} 83. Kxd3 {[%emt 0:00:04]} 1/2-1/2